Department Family,Entity,Date,Fiscal Date,Expense Type,Expense Area,Supplier,Transaction Number,AP Amount,VAT Registration Number,Purchase Invoice Number
Department of Health,Derbyshire Healthcare NHS Foundation Trust,31/10/2020,31/10/2020,Drugs,DerbyshireSubstanceMisuse,NHS BUSINESS SERVICES AUTHORITY,35751217,43756.5,GB 281 0607 23,1000066605
Department of Health,Derbyshire Healthcare NHS Foundation Trust,31/10/2020,31/10/2020,Drugs,FP10 Drugs,NHS BUSINESS SERVICES AUTHORITY,35751217,159342.83,GB 281 0607 23,1000066605
Department of Health,Derbyshire Healthcare NHS Foundation Trust,31/10/2020,31/10/2020,Computer Maintenance,IT Infrastructure,NHS ARDEN AND GEM CSU,35797209,211640.25,,7312619451
Department of Health,Derbyshire Healthcare NHS Foundation Trust,31/10/2020,31/10/2020,Bldg Ctrcts - PFI Svc Chg,Kingsway PFI,ARDEN PARTNERSHIP (DERBY) LTD,35817589,106498.01,911330964,SI0109
Department of Health,Derbyshire Healthcare NHS Foundation Trust,31/10/2020,31/10/2020,Contingent rents,BTL,ARDEN PARTNERSHIP (DERBY) LTD,35817589,73284.34,911330964,SI0109
Department of Health,Derbyshire Healthcare NHS Foundation Trust,31/10/2020,31/10/2020,Finance Lease & HP NCurr,Balance Sheet,ARDEN PARTNERSHIP (DERBY) LTD,35817589,75654.34,911330964,SI0109
Department of Health,Derbyshire Healthcare NHS Foundation Trust,31/10/2020,31/10/2020,Interest Payable,BTL,ARDEN PARTNERSHIP (DERBY) LTD,35817589,118483.1,911330964,SI0109
Department of Health,Derbyshire Healthcare NHS Foundation Trust,31/10/2020,31/10/2020,Othr Prepay&AccrIncmNCurr,Balance Sheet,ARDEN PARTNERSHIP (DERBY) LTD,35817589,63860.69,911330964,SI0109
Department of Health,Derbyshire Healthcare NHS Foundation Trust,31/10/2020,31/10/2020,Agency Admin & Clerical,Temporary Staff Control,ATHONA LTD,35818775,38774.59,GB848352111,WK27ATH2021
Department of Health,Derbyshire Healthcare NHS Foundation Trust,31/10/2020,31/10/2020,Agency Admin & Clerical,Temporary Staff Control,SERVICE CARE SOLUTIONS LTD,35818783,73726.18,853479002,WK27SCS2021
Department of Health,Derbyshire Healthcare NHS Foundation Trust,31/10/2020,31/10/2020,Stocks Finished Goods,Balance Sheet,JANSSEN CILAG LTD,35852286,62377.07,207929448,44098
Department of Health,Derbyshire Healthcare NHS Foundation Trust,31/10/2020,31/10/2020,AUC Additions,Balance Sheet,ARDEN PARTNERSHIP (DERBY) LTD,35860203,193915.58,911330964,SI0111
Department of Health,Derbyshire Healthcare NHS Foundation Trust,31/10/2020,31/10/2020,Independent Sector,DerbyshireSubstanceMisuse,DERBYSHIRE ALCOHOL ADVICE SERVICE,35860222,46599,,20202109
Department of Health,Derbyshire Healthcare NHS Foundation Trust,31/10/2020,31/10/2020,Independent Sector,Derby Substance Misuse,PHOENIX HOUSE,35860228,82661,,113764
Department of Health,Derbyshire Healthcare NHS Foundation Trust,31/10/2020,31/10/2020,Independent Sector,DerbyshireSubstanceMisuse,PHOENIX HOUSE,35860236,158195,,113763
Department of Health,Derbyshire Healthcare NHS Foundation Trust,31/10/2020,31/10/2020,Independent Sector,Acute OofA + Step Down,RUSHCLIFFE INDEPENDENT HOSPITAL,35860252,117600,,DCC10
Department of Health,Derbyshire Healthcare NHS Foundation Trust,31/10/2020,31/10/2020,Independent Sector,Acute OofA + Step Down,RUSHCLIFFE INDEPENDENT HOSPITAL,35862282,121520,,DCC11
Department of Health,Derbyshire Healthcare NHS Foundation Trust,31/10/2020,31/10/2020,Income tax - Current,Balance Sheet,INLAND REVENUE CIS,35892264,1063622.85,,507PX001657472106
Department of Health,Derbyshire Healthcare NHS Foundation Trust,31/10/2020,31/10/2020,National Insurance - Curr,Balance Sheet,INLAND REVENUE CIS,35892264,1347564.34,,507PX001657472106
Department of Health,Derbyshire Healthcare NHS Foundation Trust,31/10/2020,31/10/2020,Trade Local Debtors Adj,Balance Sheet,VODAFONE LTD,35933739,56944.39,GB 569 9532 77,96116606
Department of Health,Derbyshire Healthcare NHS Foundation Trust,31/10/2020,31/10/2020,Agency Admin & Clerical,Temporary Staff Control,ATHONA LTD,35972261,39081.84,GB848352111,WK29ATH2021
Department of Health,Derbyshire Healthcare NHS Foundation Trust,31/10/2020,31/10/2020,Agency Admin & Clerical,Temporary Staff Control,SERVICE CARE SOLUTIONS LTD,35972273,33710.93,853479002,WK29SCS2021
Department of Health,Derbyshire Healthcare NHS Foundation Trust,31/10/2020,31/10/2020,SrvcsRecd-FoundationTrust,DCHS Facilities SLA,DERBYSHIRE COMMUNITY HEALTH SERVICES NHS FOUNDATION TRUST,35981711,36527.91,,11910319
Department of Health,Derbyshire Healthcare NHS Foundation Trust,31/10/2020,31/10/2020,SrvcsRecd-FoundationTrust,DCHS Properties SLA,DERBYSHIRE COMMUNITY HEALTH SERVICES NHS FOUNDATION TRUST,35981711,41668.82,,11910319
Department of Health,Derbyshire Healthcare NHS Foundation Trust,31/10/2020,31/10/2020,SrvcsRecd-FoundationTrust,DCHS Facilities SLA,DERBYSHIRE COMMUNITY HEALTH SERVICES NHS FOUNDATION TRUST,35981713,36527.91,,11910402
Department of Health,Derbyshire Healthcare NHS Foundation Trust,31/10/2020,31/10/2020,SrvcsRecd-FoundationTrust,DCHS Properties SLA,DERBYSHIRE COMMUNITY HEALTH SERVICES NHS FOUNDATION TRUST,35981713,41668.82,,11910402
Department of Health,Derbyshire Healthcare NHS Foundation Trust,31/10/2020,31/10/2020,Independent Sector,DerbyshireSubstanceMisuse,INTUITIVE THINKING SKILLS LTD,35981714,27872.4,GB857566181,12748
Department of Health,Derbyshire Healthcare NHS Foundation Trust,31/10/2020,31/10/2020,Stocks Finished Goods,Balance Sheet,ALLIANCE HEALTHCARE DISTRIBUTION LTD,35982403,26127.5,GB 201 0484 27,2021WK30PHAL
Department of Health,Derbyshire Healthcare NHS Foundation Trust,31/10/2020,31/10/2020,Lease Rents,CHRoyal Proporties SLA,CHESTERFIELD ROYAL HOSPITAL NHS FOUNDATION TRUST,36035267,86685.5,654915709,4557487
Department of Health,Derbyshire Healthcare NHS Foundation Trust,31/10/2020,31/10/2020,SrvcsRecd-FoundationTrust,CHRoyal Estates SLA,CHESTERFIELD ROYAL HOSPITAL NHS FOUNDATION TRUST,36035267,36961.65,654915709,4557487
Department of Health,Derbyshire Healthcare NHS Foundation Trust,31/10/2020,31/10/2020,SrvcsRecd-FoundationTrust,CHRoyal Facilities SLA,CHESTERFIELD ROYAL HOSPITAL NHS FOUNDATION TRUST,36035267,99091.73,654915709,4557487
Department of Health,Derbyshire Healthcare NHS Foundation Trust,31/10/2020,31/10/2020,SrvcsRecd-FoundationTrust,CHRoyal Proporties SLA,CHESTERFIELD ROYAL HOSPITAL NHS FOUNDATION TRUST,36035267,37821.45,654915709,4557487
Department of Health,Derbyshire Healthcare NHS Foundation Trust,31/10/2020,31/10/2020,SrvcsRecd-FoundationTrust,SLAs Adult Care Acute Nth,CHESTERFIELD ROYAL HOSPITAL NHS FOUNDATION TRUST,36035267,56253.95,654915709,4557487
Department of Health,Derbyshire Healthcare NHS Foundation Trust,31/10/2020,31/10/2020,Lease Rents,CHRoyal Proporties SLA,CHESTERFIELD ROYAL HOSPITAL NHS FOUNDATION TRUST,36035269,86685.5,654915709,4557486
Department of Health,Derbyshire Healthcare NHS Foundation Trust,31/10/2020,31/10/2020,SrvcsRecd-FoundationTrust,CHRoyal Estates SLA,CHESTERFIELD ROYAL HOSPITAL NHS FOUNDATION TRUST,36035269,36961.65,654915709,4557486
Department of Health,Derbyshire Healthcare NHS Foundation Trust,31/10/2020,31/10/2020,SrvcsRecd-FoundationTrust,CHRoyal Facilities SLA,CHESTERFIELD ROYAL HOSPITAL NHS FOUNDATION TRUST,36035269,99091.74,654915709,4557486
Department of Health,Derbyshire Healthcare NHS Foundation Trust,31/10/2020,31/10/2020,SrvcsRecd-FoundationTrust,CHRoyal Proporties SLA,CHESTERFIELD ROYAL HOSPITAL NHS FOUNDATION TRUST,36035269,37821.45,654915709,4557486
Department of Health,Derbyshire Healthcare NHS Foundation Trust,31/10/2020,31/10/2020,SrvcsRecd-FoundationTrust,SLAs Adult Care Acute Nth,CHESTERFIELD ROYAL HOSPITAL NHS FOUNDATION TRUST,36035269,56253.95,654915709,4557486
Department of Health,Derbyshire Healthcare NHS Foundation Trust,31/10/2020,31/10/2020,Independent Sector,Acute OofA + Step Down,RICHMOND FELLOWSHIP,36035271,38468,451177263,CUSTINV00106436
Department of Health,Derbyshire Healthcare NHS Foundation Trust,31/10/2020,31/10/2020,Independent Sector,IAPT,DERWENT RURAL COUNSELLING SERVICES,36035285,112379.88,,23725
Department of Health,Derbyshire Healthcare NHS Foundation Trust,31/10/2020,31/10/2020,SrvcsRecd-FoundationTrust,People Serv Senior Team,DERBYSHIRE COMMUNITY HEALTH SERVICES NHS FOUNDATION TRUST,36035289,122816.67,,11910375
Department of Health,Derbyshire Healthcare NHS Foundation Trust,31/10/2020,31/10/2020,Independent Sector,Acute OofA + Step Down,RUSHCLIFFE INDEPENDENT HOSPITAL,36035291,133280,,DCC11INV
Department of Health,Derbyshire Healthcare NHS Foundation Trust,31/10/2020,31/10/2020,ERet Provn Staff O Bal NC,Balance Sheet,NHS BUSINESS SERVICES AUTHORITY,36035303,42430.69,GB 281 0607 23,1000002145
Department of Health,Derbyshire Healthcare NHS Foundation Trust,31/10/2020,31/10/2020,ERet Provn Staff O Bal NC,Balance Sheet,NHS BUSINESS SERVICES AUTHORITY,36035308,41831.25,GB 281 0607 23,1000001921
Department of Health,Derbyshire Healthcare NHS Foundation Trust,31/10/2020,31/10/2020,ERet Provn Staff O Bal NC,Balance Sheet,NHS BUSINESS SERVICES AUTHORITY,36035311,42542.49,GB 281 0607 23,1000002369
Department of Health,Derbyshire Healthcare NHS Foundation Trust,31/10/2020,31/10/2020,SPECIALTY TRAINING - ST6,CountyS Training Grades,NOTTINGHAMSHIRE HEALTHCARE NHS TRUST,36060703,44490.84,654406833,1000054739
Department of Health,Derbyshire Healthcare NHS Foundation Trust,31/10/2020,31/10/2020,Speciality Training - ST2,CountyS Training Grades,ST HELENS & KNOWSLEY HOSPITALS NHS TRUST,36060706,28108.13,654943996,16800174
Department of Health,Derbyshire Healthcare NHS Foundation Trust,31/10/2020,31/10/2020,SPECIALTY TRAINING - ST6,CountyS Training Grades,NOTTINGHAMSHIRE HEALTHCARE NHS TRUST,36060714,27691.05,654406833,1000054790
Department of Health,Derbyshire Healthcare NHS Foundation Trust,30/09/2020,30/09/2020,Speciality Training - ST2,CountyS Training Grades,ST HELENS & KNOWSLEY HOSPITALS NHS TRUST,35721342,28108.11,654943996,16799552
Department of Health,Derbyshire Healthcare NHS Foundation Trust,30/09/2020,30/09/2020,Computer Software/License,IT Infrastructure,CIVICA UK LTD,35721349,130338,GB 391171065,CPR203632
Department of Health,Derbyshire Healthcare NHS Foundation Trust,30/09/2020,30/09/2020,NMET Revenue,IAPT,DERWENT RURAL COUNSELLING SERVICES,35721350,38515,,DRCSTRAINEESAPRAUG01
Department of Health,Derbyshire Healthcare NHS Foundation Trust,30/09/2020,30/09/2020,Computer Software/License,IT Infrastructure,CIVICA UK LTD,35721351,78600,GB 391171065,CPR203629
